[Event "Early-Titled-Tuesday-Blitz-October-10-2023"]
[Site "Chess.com"]
[Date "2023.10.10"]
[Round "8"]
[White "fastestmindalive"]
[Black "DeArron_Fox"]
[Result "1-0"]
[WhiteElo "2734"]
[BlackElo "2527"]
[TimeControl "180+1"]
[EndTime "9:27:04 PDT"]
[Termination "fastestmindalive won by checkmate"]

1. e4 {[%clk 0:03:00.9]} 1... c5 {[%clk 0:02:58.9]} 2. Nc3 {[%clk 0:02:43.8]}
2... e6 {[%clk 0:02:59.1]} 3. d4 {[%clk 0:02:43.3]} 3... cxd4 {[%clk 0:02:57.5]}
4. Qxd4 {[%clk 0:02:44.2]} 4... Nc6 {[%clk 0:02:58.2]} 5. Qe3 {[%clk 0:02:44.7]}
5... Nf6 {[%clk 0:02:58.8]} 6. Nf3 {[%clk 0:02:45.2]} 6... Qc7 {[%clk
0:02:57.2]} 7. h3 {[%clk 0:02:44.6]} 7... d5 {[%clk 0:02:27.3]} 8. exd5 {[%clk
0:02:43.8]} 8... Nb4 {[%clk 0:02:25.6]} 9. Bb5+ {[%clk 0:02:42.2]} 9... Bd7
{[%clk 0:02:25.3]} 10. O-O {[%clk 0:02:03.8]} 10... Nbxd5 {[%clk 0:02:21.9]} 11.
Bxd7+ {[%clk 0:01:59]} 11... Qxd7 {[%clk 0:02:21.5]} 12. Nxd5 {[%clk 0:01:59.6]}
12... Nxd5 {[%clk 0:02:22.4]} 13. Qg5 {[%clk 0:01:59.9]} 13... f6 {[%clk
0:02:06.1]} 14. Qh5+ {[%clk 0:01:58.9]} 14... Qf7 {[%clk 0:02:04.1]} 15. Qg4
{[%clk 0:01:58.7]} 15... Be7 {[%clk 0:02:00.1]} 16. c4 {[%clk 0:01:54.4]} 16...
Nb4 {[%clk 0:01:47.2]} 17. Rd1 {[%clk 0:01:44.6]} 17... Nc6 {[%clk 0:01:28.5]}
18. a3 {[%clk 0:01:32.8]} 18... Rd8 {[%clk 0:01:23.1]} 19. Be3 {[%clk
0:01:32.2]} 19... O-O {[%clk 0:01:19.2]} 20. b4 {[%clk 0:01:32.7]} 20... e5
{[%clk 0:00:55.6]} 21. Rxd8 {[%clk 0:01:27.4]} 21... Rxd8 {[%clk 0:00:54.6]} 22.
Nh4 {[%clk 0:01:27.8]} 22... Bf8 {[%clk 0:00:11.8]} 23. Nf5 {[%clk 0:01:22.9]}
23... Kh8 {[%clk 0:00:11.6]} 24. b5 {[%clk 0:01:22.2]} 24... Na5 {[%clk
0:00:07.7]} 25. c5 {[%clk 0:01:18]} 25... Nb3 {[%clk 0:00:06.7]} 26. Rd1 {[%clk
0:00:43.5]} 26... Rxd1+ {[%clk 0:00:06]} 27. Qxd1 {[%clk 0:00:44.4]} 27... Nxc5
{[%clk 0:00:06.3]} 28. Nd6 {[%clk 0:00:41.4]} 28... Bxd6 {[%clk 0:00:02.4]} 29.
Qxd6 {[%clk 0:00:42.3]} 29... Ne6 {[%clk 0:00:02.3]} 30. Qb8+ {[%clk 0:00:42.6]}
30... Qf8 {[%clk 0:00:02.2]} 31. Qxb7 {[%clk 0:00:42.2]} 31... h6 {[%clk
0:00:01.4]} 32. Qxa7 {[%clk 0:00:41.1]} 32... Qd6 {[%clk 0:00:01.1]} 33. b6
{[%clk 0:00:39.8]} 33... Qd1+ {[%clk 0:00:01.6]} 34. Kh2 {[%clk 0:00:39.7]}
34... Nd4 {[%clk 0:00:02.5]} 35. b7 {[%clk 0:00:38.3]} 35... Ne2 {[%clk
0:00:02.1]} 36. b8=Q+ {[%clk 0:00:38]} 36... Kh7 {[%clk 0:00:03]} 37. f3 {[%clk
0:00:38.2]} 37... Qe1 {[%clk 0:00:02.7]} 38. Bf2 {[%clk 0:00:38.2]} 38... Qf1
{[%clk 0:00:02.4]} 39. Qe3 {[%clk 0:00:38]} 39... Nf4 {[%clk 0:00:02.3]} 40.
Qe4+ {[%clk 0:00:37.5]} 40... g6 {[%clk 0:00:01.5]} 41. Qeb7# {[%clk 0:00:37.4]}
1-0

[Event "Early-Titled-Tuesday-Blitz-October-10-2023"]
[Site "Chess.com"]
[Date "2023.10.10"]
[Round "8"]
[White "N4700000"]
[Black "SchachmattTV_Tobi"]
[Result "1-0"]
[WhiteElo "2445"]
[BlackElo "2582"]
[TimeControl "180+1"]
[EndTime "9:27:06 PDT"]
[Termination "N4700000 won on time"]

1. d4 {[%clk 0:03:00.9]} 1... d5 {[%clk 0:02:28.2]} 2. Nc3 {[%clk 0:03:00.8]}
2... Nf6 {[%clk 0:02:26.9]} 3. Bf4 {[%clk 0:03:00.7]} 3... a6 {[%clk 0:02:26]}
4. e3 {[%clk 0:02:59.7]} 4... b5 {[%clk 0:02:26.1]} 5. Nf3 {[%clk 0:02:55]} 5...
Bb7 {[%clk 0:02:24.9]} 6. Ne5 {[%clk 0:02:53.6]} 6... e6 {[%clk 0:02:22.6]} 7.
g4 {[%clk 0:02:52]} 7... c5 {[%clk 0:02:23]} 8. Bg2 {[%clk 0:02:49.1]} 8... Nc6
{[%clk 0:02:21.6]} 9. Nxc6 {[%clk 0:02:35.3]} 9... Bxc6 {[%clk 0:02:21.6]} 10.
g5 {[%clk 0:02:20.1]} 10... Nd7 {[%clk 0:02:21.7]} 11. h4 {[%clk 0:02:12.6]}
11... Nb6 {[%clk 0:02:17]} 12. O-O {[%clk 0:02:06.4]} 12... Bd6 {[%clk
0:01:44.5]} 13. dxc5 {[%clk 0:01:40.1]} 13... Bxc5 {[%clk 0:01:45.4]} 14. Be5
{[%clk 0:01:39.9]} 14... O-O {[%clk 0:01:42.3]} 15. Ne2 {[%clk 0:01:36.7]} 15...
Nc4 {[%clk 0:01:38.6]} 16. Bd4 {[%clk 0:01:32.6]} 16... Bxd4 {[%clk 0:01:38.9]}
17. Qxd4 {[%clk 0:01:30.7]} 17... e5 {[%clk 0:01:39.3]} 18. Qc3 {[%clk 0:01:27]}
18... a5 {[%clk 0:00:59.2]} 19. a3 {[%clk 0:01:11.9]} 19... Qe7 {[%clk
0:00:33.1]} 20. b3 {[%clk 0:00:49.8]} 20... b4 {[%clk 0:00:33.2]} 21. axb4
{[%clk 0:00:49.5]} 21... axb4 {[%clk 0:00:34.1]} 22. Qd3 {[%clk 0:00:49.4]}
22... Nb6 {[%clk 0:00:20.3]} 23. Ng3 {[%clk 0:00:30.6]} 23... Qc5 {[%clk
0:00:19.3]} 24. Rfd1 {[%clk 0:00:29.5]} 24... Bb5 {[%clk 0:00:15.3]} 25. Qd2
{[%clk 0:00:28.1]} 25... Rxa1 {[%clk 0:00:12.7]} 26. Rxa1 {[%clk 0:00:27.5]}
26... Rc8 {[%clk 0:00:03.2]} 27. Ra5 {[%clk 0:00:21.9]} 27... g6 {[%clk
0:00:03.8]} 28. Bf1 {[%clk 0:00:21.2]} 28... Qxc2 {[%clk 0:00:02.4]} 29. Qxc2
{[%clk 0:00:20.7]} 29... Rxc2 {[%clk 0:00:03.3]} 30. Rxb5 {[%clk 0:00:20.8]}
30... Nc8 {[%clk 0:00:02.8]} 31. Rxb4 {[%clk 0:00:20.9]} 31... Nd6 {[%clk
0:00:02.9]} 32. Rb6 {[%clk 0:00:18.7]} 32... Ne4 {[%clk 0:00:02.6]} 33. Nxe4
{[%clk 0:00:18]} 33... dxe4 {[%clk 0:00:03.5]} 34. Bc4 {[%clk 0:00:18]} 34...
Kg7 {[%clk 0:00:02.1]} 35. Rb7 {[%clk 0:00:17.4]} 1-0

[Event "Early-Titled-Tuesday-Blitz-October-10-2023"]
[Site "Chess.com"]
[Date "2023.10.10"]
[Round "8"]
[White "TregubovP"]
[Black "Pawnpusher1245"]
[Result "1-0"]
[WhiteElo "2591"]
[BlackElo "2389"]
[TimeControl "180+1"]
[EndTime "9:27:06 PDT"]
[Termination "TregubovP won on time"]

1. e4 {[%clk 0:03:00.9]} 1... c5 {[%clk 0:02:57.5]} 2. Nf3 {[%clk 0:03:00.8]}
2... d6 {[%clk 0:02:57]} 3. Bb5+ {[%clk 0:03:00.9]} 3... Nd7 {[%clk 0:02:56.5]}
4. Ba4 {[%clk 0:03:01.1]} 4... Nf6 {[%clk 0:02:47]} 5. O-O {[%clk 0:03:01]} 5...
e6 {[%clk 0:02:44.1]} 6. Re1 {[%clk 0:03:00.5]} 6... Be7 {[%clk 0:02:43.1]} 7.
c3 {[%clk 0:03:00.9]} 7... O-O {[%clk 0:02:42.3]} 8. d4 {[%clk 0:03:01.5]} 8...
cxd4 {[%clk 0:02:41.8]} 9. cxd4 {[%clk 0:03:01.7]} 9... b6 {[%clk 0:02:16.1]}
10. Nc3 {[%clk 0:03:00.6]} 10... Bb7 {[%clk 0:02:14.1]} 11. Bf4 {[%clk 0:02:32]}
11... a6 {[%clk 0:02:08.2]} 12. Bb3 {[%clk 0:02:19.5]} 12... Rc8 {[%clk
0:01:26.6]} 13. e5 {[%clk 0:02:17.8]} 13... dxe5 {[%clk 0:01:26.6]} 14. dxe5
{[%clk 0:02:17.9]} 14... Nh5 {[%clk 0:01:26.3]} 15. Be3 {[%clk 0:02:09.2]} 15...
Nc5 {[%clk 0:01:22.1]} 16. Qxd8 {[%clk 0:01:50.4]} 16... Rfxd8 {[%clk
0:01:13.6]} 17. Red1 {[%clk 0:01:49.2]} 17... g6 {[%clk 0:00:47.1]} 18. Ne1
{[%clk 0:01:34.7]} 18... Ng7 {[%clk 0:00:42.1]} 19. g4 {[%clk 0:01:32]} 19... h5
{[%clk 0:00:37]} 20. h3 {[%clk 0:01:32.2]} 20... hxg4 {[%clk 0:00:26.6]} 21.
hxg4 {[%clk 0:01:31.8]} 21... Ne8 {[%clk 0:00:20.5]} 22. Bc2 {[%clk 0:01:07.3]}
22... Nc7 {[%clk 0:00:19.2]} 23. Bxc5 {[%clk 0:01:00.4]} 23... Bxc5 {[%clk
0:00:18.1]} 24. Be4 {[%clk 0:01:00.3]} 24... Bxe4 {[%clk 0:00:16.4]} 25. Nxe4
{[%clk 0:01:00.6]} 25... Nd5 {[%clk 0:00:13.9]} 26. Rac1 {[%clk 0:00:57.6]}
26... Be7 {[%clk 0:00:11.9]} 27. Nd3 {[%clk 0:00:43.3]} 27... a5 {[%clk
0:00:10.2]} 28. Kf1 {[%clk 0:00:39.8]} 28... Kg7 {[%clk 0:00:07.2]} 29. Ke2
{[%clk 0:00:39.4]} 29... g5 {[%clk 0:00:05.9]} 30. Rh1 {[%clk 0:00:24.6]} 30...
Rh8 {[%clk 0:00:06.2]} 31. Rxh8 {[%clk 0:00:23.3]} 31... Rxh8 {[%clk 0:00:06.1]}
32. Nc3 {[%clk 0:00:21]} 32... Nf4+ {[%clk 0:00:03.6]} 33. Nxf4 {[%clk
0:00:20.7]} 33... gxf4 {[%clk 0:00:04.5]} 34. Ne4 {[%clk 0:00:20.1]} 34... Rh4
{[%clk 0:00:04]} 35. Kf3 {[%clk 0:00:19.8]} 35... Rh8 {[%clk 0:00:02.3]} 36.
Kxf4 {[%clk 0:00:19.4]} 36... Rd8 {[%clk 0:00:01.2]} 37. Rc7 {[%clk 0:00:18.4]}
1-0

[Event "Early-Titled-Tuesday-Blitz-October-10-2023"]
[Site "Chess.com"]
[Date "2023.10.10"]
[Round "8"]
[White "ozates"]
[Black "Sadykov_Ramil"]
[Result "1-0"]
[WhiteElo "2769"]
[BlackElo "2619"]
[TimeControl "180+1"]
[EndTime "9:27:10 PDT"]
[Termination "ozates won by checkmate"]

1. e4 {[%clk 0:03:00.9]} 1... e6 {[%clk 0:02:56.3]} 2. d4 {[%clk 0:02:59.8]}
2... d5 {[%clk 0:02:56.9]} 3. Nd2 {[%clk 0:03:00.2]} 3... Be7 {[%clk 0:02:56.4]}
4. Bd3 {[%clk 0:02:58.2]} 4... c5 {[%clk 0:02:54.9]} 5. dxc5 {[%clk 0:02:57.2]}
5... Nf6 {[%clk 0:02:55.2]} 6. Qe2 {[%clk 0:02:56.5]} 6... Nc6 {[%clk
0:02:51.8]} 7. c3 {[%clk 0:02:54.7]} 7... a5 {[%clk 0:02:40.4]} 8. Ngf3 {[%clk
0:02:54.2]} 8... Bxc5 {[%clk 0:02:31.4]} 9. O-O {[%clk 0:02:54.1]} 9... a4
{[%clk 0:02:30.2]} 10. e5 {[%clk 0:02:43.4]} 10... Nd7 {[%clk 0:02:29.6]} 11.
Re1 {[%clk 0:02:42.5]} 11... O-O {[%clk 0:02:18.3]} 12. h4 {[%clk 0:02:38.6]}
12... f6 {[%clk 0:02:13.1]} 13. exf6 {[%clk 0:02:24.6]} 13... Nxf6 {[%clk
0:02:13]} 14. c4 {[%clk 0:02:23.5]} 14... h6 {[%clk 0:01:41.3]} 15. cxd5 {[%clk
0:02:20.9]} 15... exd5 {[%clk 0:01:41]} 16. Nf1 {[%clk 0:02:04.5]} 16... Bg4
{[%clk 0:01:37.8]} 17. Be3 {[%clk 0:01:59.4]} 17... Nd4 {[%clk 0:01:27.9]} 18.
Bxd4 {[%clk 0:01:56.6]} 18... Bxd4 {[%clk 0:01:28.8]} 19. N1h2 {[%clk
0:01:53.7]} 19... Qb6 {[%clk 0:01:21]} 20. Rad1 {[%clk 0:01:47.8]} 20... Qxb2
{[%clk 0:01:14.5]} 21. Nxg4 {[%clk 0:01:34.6]} 21... Nxg4 {[%clk 0:01:14.1]} 22.
Qe6+ {[%clk 0:01:34.9]} 22... Kh8 {[%clk 0:01:07.8]} 23. Qxg4 {[%clk 0:01:35.8]}
23... Bxf2+ {[%clk 0:00:50.5]} 24. Kh1 {[%clk 0:01:34.6]} 24... Bxe1 {[%clk
0:00:32.8]} 25. Qg6 {[%clk 0:01:28.5]} 25... Kg8 {[%clk 0:00:31.6]} 26. Rxe1
{[%clk 0:01:26.2]} 26... Qc3 {[%clk 0:00:16.4]} 27. Qh7+ {[%clk 0:00:37.7]}
27... Kf7 {[%clk 0:00:16.3]} 28. Ne5+ {[%clk 0:00:38.4]} 28... Ke6 {[%clk
0:00:15.7]} 29. Qg6+ {[%clk 0:00:29.6]} 29... Rf6 {[%clk 0:00:15.9]} 30. Qg4+
{[%clk 0:00:17.3]} 30... Kd6 {[%clk 0:00:16]} 31. Qg3 {[%clk 0:00:14.1]} 31...
Kc5 {[%clk 0:00:10.5]} 32. Nd7+ {[%clk 0:00:13.3]} 32... Kd4 {[%clk 0:00:02.8]}
33. Qe5+ {[%clk 0:00:13.2]} 33... Kxd3 {[%clk 0:00:02.5]} 34. Re3+ {[%clk
0:00:13.9]} 34... Kd2 {[%clk 0:00:02.7]} 35. Qxc3+ {[%clk 0:00:14.3]} 35... Kd1
{[%clk 0:00:02.6]} 36. Re1# {[%clk 0:00:15.2]} 1-0

[Event "Early-Titled-Tuesday-Blitz-October-10-2023"]
[Site "Chess.com"]
[Date "2023.10.10"]
[Round "8"]
[White "RianKapriaga"]
[Black "howitzer14"]
[Result "0-1"]
[WhiteElo "2306"]
[BlackElo "3006"]
[TimeControl "180+1"]
[EndTime "9:27:12 PDT"]
[Termination "howitzer14 won on time"]

1. d4 {[%clk 0:03:00.9]} 1... f5 {[%clk 0:02:43.9]} 2. Nc3 {[%clk 0:02:58.9]}
2... Nf6 {[%clk 0:02:43.8]} 3. Bg5 {[%clk 0:02:57.5]} 3... d5 {[%clk 0:02:44.1]}
4. e3 {[%clk 0:02:54.4]} 4... Nbd7 {[%clk 0:02:24.6]} 5. Nf3 {[%clk 0:02:53.2]}
5... c6 {[%clk 0:02:19.9]} 6. Ne2 {[%clk 0:02:51.2]} 6... Ne4 {[%clk 0:02:15.7]}
7. Bf4 {[%clk 0:02:38.2]} 7... g6 {[%clk 0:02:11.8]} 8. Ne5 {[%clk 0:02:32.2]}
8... Bg7 {[%clk 0:02:08.3]} 9. Nxd7 {[%clk 0:02:26.8]} 9... Bxd7 {[%clk
0:02:07.6]} 10. Nc1 {[%clk 0:02:17]} 10... g5 {[%clk 0:01:36.1]} 11. Bg3 {[%clk
0:02:11.9]} 11... h5 {[%clk 0:01:36]} 12. Nd3 {[%clk 0:02:04.6]} 12... h4 {[%clk
0:01:27.5]} 13. Be5 {[%clk 0:02:02.9]} 13... Bf6 {[%clk 0:01:28.2]} 14. Be2
{[%clk 0:02:00]} 14... Qb6 {[%clk 0:01:18.5]} 15. Bh5+ {[%clk 0:01:55]} 15...
Kf8 {[%clk 0:01:15.7]} 16. Be2 {[%clk 0:01:42.5]} 16... Kg7 {[%clk 0:01:12.9]}
17. O-O {[%clk 0:01:40.3]} 17... Rad8 {[%clk 0:01:09.7]} 18. a4 {[%clk
0:01:32.6]} 18... a5 {[%clk 0:01:07.7]} 19. f3 {[%clk 0:01:25.2]} 19... Nd6
{[%clk 0:01:07.5]} 20. Ra3 {[%clk 0:00:54.2]} 20... Bc8 {[%clk 0:00:55.6]} 21.
Rb3 {[%clk 0:00:50]} 21... Qa7 {[%clk 0:00:55.8]} 22. Kh1 {[%clk 0:00:39.7]}
22... Nc4 {[%clk 0:00:52.1]} 23. Bxf6+ {[%clk 0:00:35.2]} 23... exf6 {[%clk
0:00:51.8]} 24. Nc5 {[%clk 0:00:31.9]} 24... b6 {[%clk 0:00:48.3]} 25. Ne4
{[%clk 0:00:15.8]} 25... fxe4 {[%clk 0:00:41.3]} 26. fxe4 {[%clk 0:00:16]} 26...
Rde8 {[%clk 0:00:35.5]} 27. e5 {[%clk 0:00:13.5]} 27... fxe5 {[%clk 0:00:35]}
28. e4 {[%clk 0:00:12.3]} 28... Rhf8 {[%clk 0:00:22.8]} 29. Bxc4 {[%clk
0:00:10.3]} 29... dxc4 {[%clk 0:00:21.3]} 30. Rbf3 {[%clk 0:00:07.2]} 30... Bg4
{[%clk 0:00:18.9]} 31. dxe5 {[%clk 0:00:02.6]} 31... Bxf3 {[%clk 0:00:18.2]} 32.
gxf3 {[%clk 0:00:03.3]} 32... Qe7 {[%clk 0:00:18.1]} 33. f4 {[%clk 0:00:02.4]}
33... Rxf4 {[%clk 0:00:16.4]} 34. Rxf4 {[%clk 0:00:01.8]} 34... gxf4 {[%clk
0:00:17.3]} 35. Qg4+ {[%clk 0:00:01.7]} 35... Kh6 {[%clk 0:00:17.5]} 0-1

[Event "Early-Titled-Tuesday-Blitz-October-10-2023"]
[Site "Chess.com"]
[Date "2023.10.10"]
[Round "8"]
[White "Djager97"]
[Black "Rodalquilar"]
[Result "1-0"]
[WhiteElo "2612"]
[BlackElo "2750"]
[TimeControl "180+1"]
[EndTime "9:27:14 PDT"]
[Termination "Djager97 won on time"]

1. e4 {[%clk 0:03:00.9]} 1... d5 {[%clk 0:03:00.1]} 2. exd5 {[%clk 0:03:01.1]}
2... Qxd5 {[%clk 0:03:01]} 3. Nc3 {[%clk 0:03:01.2]} 3... Qa5 {[%clk 0:03:01]}
4. d4 {[%clk 0:03:02.1]} 4... Nf6 {[%clk 0:03:01.2]} 5. Nf3 {[%clk 0:03:02.1]}
5... Bf5 {[%clk 0:03:01.5]} 6. Bc4 {[%clk 0:03:01.3]} 6... e6 {[%clk 0:03:01.8]}
7. Bd2 {[%clk 0:03:01.3]} 7... Bb4 {[%clk 0:03:02.1]} 8. a3 {[%clk 0:03:00.6]}
8... Bxc3 {[%clk 0:03:02.3]} 9. Bxc3 {[%clk 0:03:01.3]} 9... Qb6 {[%clk
0:03:02.9]} 10. Qe2 {[%clk 0:02:56.4]} 10... O-O {[%clk 0:03:02.2]} 11. O-O-O
{[%clk 0:02:56.1]} 11... Nc6 {[%clk 0:02:56.6]} 12. Nh4 {[%clk 0:02:46.9]} 12...
Be4 {[%clk 0:02:32.5]} 13. d5 {[%clk 0:02:19]} 13... Nxd5 {[%clk 0:01:34.1]} 14.
Qxe4 {[%clk 0:02:12.9]} 14... Nxc3 {[%clk 0:01:33.8]} 15. bxc3 {[%clk
0:02:13.5]} 15... Qxf2 {[%clk 0:01:34.1]} 16. Bd3 {[%clk 0:02:07.7]} 16... g6
{[%clk 0:01:32.9]} 17. Nf3 {[%clk 0:01:59.7]} 17... Qc5 {[%clk 0:01:32.7]} 18.
Kb2 {[%clk 0:01:45.4]} 18... Rfd8 {[%clk 0:01:32.8]} 19. h4 {[%clk 0:01:44.1]}
19... Rd5 {[%clk 0:01:24.6]} 20. g4 {[%clk 0:01:15.3]} 20... Qb6+ {[%clk
0:01:11.7]} 21. Ka2 {[%clk 0:01:14.5]} 21... Ra5 {[%clk 0:01:08.2]} 22. Rb1
{[%clk 0:01:11.9]} 22... Qc5 {[%clk 0:01:05.5]} 23. Rb3 {[%clk 0:01:12.5]} 23...
b5 {[%clk 0:00:42.3]} 24. h5 {[%clk 0:01:10.3]} 24... Ra4 {[%clk 0:00:42.7]} 25.
Nd4 {[%clk 0:01:04.4]} 25... Ra6 {[%clk 0:00:20.8]} 26. hxg6 {[%clk 0:01:00.7]}
26... hxg6 {[%clk 0:00:20.9]} 27. Nxe6 {[%clk 0:01:00.4]} 27... Qd6 {[%clk
0:00:18.1]} 28. Nd4 {[%clk 0:00:52.1]} 28... Rd8 {[%clk 0:00:16.7]} 29. Nxb5
{[%clk 0:00:39.9]} 29... Qc5 {[%clk 0:00:10.6]} 30. Nd4 {[%clk 0:00:23.5]} 30...
Rb6 {[%clk 0:00:02.9]} 31. Nxc6 {[%clk 0:00:20.4]} 31... Rxc6 {[%clk 0:00:02.4]}
32. c4 {[%clk 0:00:14]} 32... Re6 {[%clk 0:00:02.8]} 33. Qf4 {[%clk 0:00:12.7]}
33... Rd4 {[%clk 0:00:02.3]} 34. Qh2 {[%clk 0:00:12.2]} 34... Qe5 {[%clk
0:00:02.2]} 35. Rb8+ {[%clk 0:00:11.3]} 1-0

[Event "Early-Titled-Tuesday-Blitz-October-10-2023"]
[Site "Chess.com"]
[Date "2023.10.10"]
[Round "8"]
[White "Grandmaster1369"]
[Black "Herman-NY"]
[Result "0-1"]
[WhiteElo "2763"]
[BlackElo "2549"]
[TimeControl "180+1"]
[EndTime "9:27:14 PDT"]
[Termination "Herman-NY won on time"]

1. e4 {[%clk 0:03:00]} 1... c5 {[%clk 0:02:59.7]} 2. Nc3 {[%clk 0:02:59.7]} 2...
e6 {[%clk 0:02:59.8]} 3. f4 {[%clk 0:02:59.4]} 3... a6 {[%clk 0:02:59.8]} 4. Nf3
{[%clk 0:02:59.7]} 4... b5 {[%clk 0:03:00.3]} 5. d3 {[%clk 0:02:57.8]} 5... Bb7
{[%clk 0:03:00.4]} 6. g3 {[%clk 0:02:58.4]} 6... d5 {[%clk 0:02:57.9]} 7. Qe2
{[%clk 0:02:56.9]} 7... d4 {[%clk 0:02:47.7]} 8. Nd1 {[%clk 0:02:54.7]} 8... Nc6
{[%clk 0:02:42.9]} 9. Bg2 {[%clk 0:02:54.7]} 9... f6 {[%clk 0:02:15.8]} 10. O-O
{[%clk 0:02:52.6]} 10... Nge7 {[%clk 0:02:02.2]} 11. Nf2 {[%clk 0:02:47.9]}
11... Qd7 {[%clk 0:01:51.9]} 12. Bd2 {[%clk 0:02:23]} 12... Nc8 {[%clk
0:01:39.5]} 13. Bh3 {[%clk 0:01:33.5]} 13... Nb6 {[%clk 0:01:27.6]} 14. Nh4
{[%clk 0:01:33.5]} 14... O-O-O {[%clk 0:01:06]} 15. c3 {[%clk 0:01:33.7]} 15...
Kb8 {[%clk 0:01:02.3]} 16. Rac1 {[%clk 0:01:32.9]} 16... c4 {[%clk 0:00:51.6]}
17. Rfd1 {[%clk 0:01:09.4]} 17... Bc5 {[%clk 0:00:39.2]} 18. Nf3 {[%clk
0:00:34.2]} 18... dxc3 {[%clk 0:00:28.9]} 19. Rxc3 {[%clk 0:00:31.4]} 19... cxd3
{[%clk 0:00:29.2]} 20. Qe1 {[%clk 0:00:29.5]} 20... Bxf2+ {[%clk 0:00:20.4]} 21.
Qxf2 {[%clk 0:00:28.1]} 21... Nc4 {[%clk 0:00:13.9]} 22. b3 {[%clk 0:00:21.5]}
22... Nxd2 {[%clk 0:00:09.6]} 23. Rxd2 {[%clk 0:00:22.4]} 23... Nd4 {[%clk
0:00:03.8]} 24. Rcxd3 {[%clk 0:00:19.5]} 24... Nxf3+ {[%clk 0:00:04.1]} 25. Qxf3
{[%clk 0:00:20.3]} 25... Qc7 {[%clk 0:00:04]} 26. Qe3 {[%clk 0:00:08.3]} 26...
e5 {[%clk 0:00:02.6]} 27. fxe5 {[%clk 0:00:07.4]} 27... fxe5 {[%clk 0:00:02.2]}
28. Rd7 {[%clk 0:00:07]} 28... Rxd7 {[%clk 0:00:02.4]} 29. Rxd7 {[%clk
0:00:07.8]} 29... Qc2 {[%clk 0:00:01.9]} 30. Bg2 {[%clk 0:00:02.9]} 30... Rf8
{[%clk 0:00:01.6]} 31. Rd2 {[%clk 0:00:02.6]} 31... Qb1+ {[%clk 0:00:01.7]} 0-1

[Event "Early-Titled-Tuesday-Blitz-October-10-2023"]
[Site "Chess.com"]
[Date "2023.10.10"]
[Round "8"]
[White "whiteglovethief"]
[Black "jcibarra"]
[Result "0-1"]
[WhiteElo "2555"]
[BlackElo "2910"]
[TimeControl "180+1"]
[EndTime "9:27:15 PDT"]
[Termination "jcibarra won on time"]

1. d4 {[%clk 0:02:59.9]} 1... Nf6 {[%clk 0:02:59.3]} 2. c4 {[%clk 0:03:00.1]}
2... e6 {[%clk 0:02:59.3]} 3. Nf3 {[%clk 0:02:59.5]} 3... d5 {[%clk 0:02:56.8]}
4. g3 {[%clk 0:02:59.5]} 4... dxc4 {[%clk 0:02:55.9]} 5. Bg2 {[%clk 0:02:57.1]}
5... Bd7 {[%clk 0:02:55.8]} 6. O-O {[%clk 0:02:54.2]} 6... Bc6 {[%clk
0:02:54.9]} 7. Nc3 {[%clk 0:02:50.8]} 7... b5 {[%clk 0:02:51.6]} 8. a4 {[%clk
0:02:48.7]} 8... b4 {[%clk 0:02:49.2]} 9. Nb1 {[%clk 0:02:45.9]} 9... a5 {[%clk
0:02:44]} 10. Qc2 {[%clk 0:02:43.4]} 10... Bd5 {[%clk 0:02:36]} 11. Nbd2 {[%clk
0:02:39.5]} 11... b3 {[%clk 0:02:35.2]} 12. Qd1 {[%clk 0:02:33.7]} 12... c5
{[%clk 0:02:27.7]} 13. e4 {[%clk 0:02:04.5]} 13... Nxe4 {[%clk 0:02:25.2]} 14.
Nxe4 {[%clk 0:01:59.4]} 14... Bxe4 {[%clk 0:02:24.1]} 15. Re1 {[%clk 0:01:57]}
15... Bd5 {[%clk 0:02:13.8]} 16. Bg5 {[%clk 0:01:48.3]} 16... Be7 {[%clk
0:02:04.7]} 17. Bxe7 {[%clk 0:01:36.7]} 17... Qxe7 {[%clk 0:02:05.6]} 18. dxc5
{[%clk 0:01:14]} 18... Qxc5 {[%clk 0:01:56]} 19. Ne5 {[%clk 0:00:11.6]} 19...
O-O {[%clk 0:01:51.2]} 20. Rc1 {[%clk 0:00:04.7]} 20... Ra7 {[%clk 0:01:41.7]}
21. Qe2 {[%clk 0:00:02.9]} 21... Rc7 {[%clk 0:01:37.2]} 22. Bxd5 {[%clk
0:00:01.6]} 22... exd5 {[%clk 0:01:34.6]} 23. Qf3 {[%clk 0:00:01.3]} 23... Nc6
{[%clk 0:01:29.9]} 24. Nd3 {[%clk 0:00:01.3]} 24... Qd6 {[%clk 0:01:05.5]} 25.
Nf4 {[%clk 0:00:02.2]} 25... Nd4 {[%clk 0:00:58.7]} 26. Qxd5 {[%clk 0:00:02.6]}
26... Qxd5 {[%clk 0:00:56.3]} 27. Nxd5 {[%clk 0:00:03.5]} 27... Nf3+ {[%clk
0:00:56.2]} 28. Kf1 {[%clk 0:00:04.2]} 28... Rc5 {[%clk 0:00:45.7]} 29. Red1
{[%clk 0:00:04.4]} 29... Nxh2+ {[%clk 0:00:39]} 30. Kg2 {[%clk 0:00:04.9]} 30...
Ng4 {[%clk 0:00:38.6]} 31. f3 {[%clk 0:00:05.3]} 31... Rxd5 {[%clk 0:00:31.1]}
32. fxg4 {[%clk 0:00:05.8]} 32... Rxd1 {[%clk 0:00:31.6]} 33. Rxd1 {[%clk
0:00:06.6]} 33... g6 {[%clk 0:00:27.4]} 34. Rd5 {[%clk 0:00:05.2]} 34... Rb8
{[%clk 0:00:20.8]} 35. Rc5 {[%clk 0:00:05.5]} 35... Rb4 {[%clk 0:00:20.6]} 36.
Kf3 {[%clk 0:00:06.1]} 36... Rxa4 {[%clk 0:00:20.1]} 37. Ke3 {[%clk 0:00:06.7]}
37... Ra2 {[%clk 0:00:19.4]} 38. Rxc4 {[%clk 0:00:05]} 38... Rxb2 {[%clk
0:00:18.6]} 39. Ra4 {[%clk 0:00:05.3]} 39... Ra2 {[%clk 0:00:18.9]} 0-1